fUST/lending_fUST_20250723
["ID","MTS","AMOUNT","RATE_DAILY","PERIOD"]
[374169111,1753236644565,-500.0,0.00018982,2]
[374169113,1753236644574,-151.21472439,0.00018982,2]
[374169115,1753236644583,-500.0,0.00018982,2]
[374169117,1753236644592,-151.0,0.00018982,2]
[374169119,1753236644601,-3811.53480332,0.00019003,2]
[374169121,1753236644610,-500.0,0.00019115,2]
[374169123,1753236644620,-5000.0,0.00019178,2]
[374169125,1753236644629,-583.05390683,0.00019178,2]
[374169127,1753236644639,-666.0,0.00019178,2]
[374169129,1753236644648,-160.0,0.00019178,2]
[374169131,1753236644657,-160.0,0.00019178,2]
[374169133,1753236644666,-160.0,0.00019178,2]
[374169134,1753236644675,-160.0,0.00019178,2]
[374169136,1753236644683,-526.15909479,0.00019178,2]
[374169138,1753236644693,-160.0,0.00019178,2]
[374169140,1753236644703,-840.06856235,0.00019179,2]
[374169142,1753236644712,-160.0,0.00019179,2]
[374169144,1753236644721,-160.0,0.00019179,2]
[374169146,1753236644731,-214.6393183,0.00019246,2]
[374169148,1753236644740,-231.06963584,0.00019246,2]
[374169150,1753236644749,-160.0,0.00019246,2]
[374169152,1753236644758,-476.60259688,0.00019246,2]
[374169154,1753236644767,-12619.94447631,0.00019246,2]
[374169156,1753236644776,-215.80012421,0.00019246,2]
[374169158,1753236644785,-1024.07,0.00019248,2]
[374169160,1753236644798,-460.0,0.00019249,2]
[374169162,1753236644807,-460.0,0.00019249,2]
[374169164,1753236644816,-460.0,0.00019249,2]
[374169166,1753236644825,-1382.84,0.00019249,2]
[374169168,1753236644834,-460.0,0.00019249,2]
[374169170,1753236644843,-1310.89,0.00019249,2]
[374169172,1753236644852,-946.48,0.00019249,2]
[374169174,1753236644861,-460.0,0.00019249,2]
[374169176,1753236644870,-218.05158167,0.00019249,2]
[374169178,1753236644879,-460.0,0.00019249,2]
[374169180,1753236644888,-2444.14,0.0001925,2]
[374169182,1753236644897,-805.37,0.0001925,2]
[374169184,1753236644906,-1065.45,0.0001925,2]
[374169195,1753236644915,-3151.94,0.00019252,2]
[374169197,1753236645013,-1209.66,0.00019252,2]
[374169199,1753236645023,-460.0,0.00019252,2]
[374169201,1753236645033,-460.0,0.00019252,2]
[374169203,1753236645042,-460.0,0.00019252,2]
[374169205,1753236645053,-460.0,0.00019252,2]
[374169207,1753236645062,-460.0,0.00019252,2]
[374169209,1753236645071,-460.0,0.00019252,2]
[374169211,1753236645080,-904.4,0.00019252,2]
[374169213,1753236645089,-460.0,0.00019252,2]
[374169215,1753236645098,-460.0,0.00019252,2]
[374169217,1753236645107,-460.0,0.00019252,2]
[374169218,1753236645116,-460.0,0.00019252,2]
[374169220,1753236645125,-521.57,0.00019252,2]
[374169222,1753236645135,-973.72,0.00019252,2]
[374169224,1753236645144,-606.61,0.00019253,2]
[374169226,1753236645154,-470.39,0.00019253,2]
[374169228,1753236645163,-460.0,0.00019253,2]
[374169230,1753236645173,-649.98471432,0.00019256,2]
[374169232,1753236645182,-500.0,0.00019256,2]
[374169234,1753236645191,-151.0,0.00019256,2]
[374169236,1753236645200,-250.65120256,0.0001927,2]
[374169238,1753236645210,-3811.53480332,0.00019279,2]
[374169240,1753236645219,-100000.0,0.00019329,2]
[374169242,1753236645229,-500.85938678,0.00019373,2]
[374169244,1753236645239,-500.0,0.00019373,2]
[374169246,1753236645252,-501.10055354,0.00019373,2]
[374169248,1753236645262,-610.11514352,0.00019373,2]
[374169250,1753236645271,-500.0,0.00019373,2]
[374169252,1753236645280,-360.0,0.00019414,2]
[374169254,1753236645290,-479.7,0.00019516,3]
[374169256,1753236645302,-1024.07,0.00019522,2]
[374169258,1753236645311,-460.0,0.00019523,2]
[374169260,1753236645321,-460.0,0.00019523,2]
[374169262,1753236645331,-460.0,0.00019523,2]
[374169264,1753236645340,-1382.84,0.00019523,2]
[374169266,1753236645350,-460.0,0.00019523,2]
[374169268,1753236645359,-1310.89,0.00019523,2]
[374169270,1753236645368,-946.48,0.00019523,2]
[374169272,1753236645377,-460.0,0.00019523,2]
[374169274,1753236645386,-460.0,0.00019523,2]
[374169276,1753236645395,-2444.14,0.00019524,2]
[374169278,1753236645403,-805.37,0.00019524,2]
[374169280,1753236645412,-1065.45,0.00019524,2]
[374169282,1753236645422,-3151.94,0.00019526,2]
[374169283,1753236645431,-1209.66,0.00019526,2]
[374169285,1753236645439,-460.0,0.00019526,2]
[374169287,1753236645449,-460.0,0.00019526,2]
[374169289,1753236645458,-460.0,0.00019526,2]
[374169291,1753236645467,-460.0,0.00019526,2]
[374169293,1753236645476,-346.35757029,0.00019526,2]
[374169295,1753236645486,-460.0,0.00019526,2]
[374169297,1753236645495,-904.4,0.00019526,2]
[374169299,1753236645504,-460.0,0.00019526,2]
[374169301,1753236645513,-207.38,0.00019526,2]
[374169303,1753236645522,-460.0,0.00019526,2]
[374169305,1753236645532,-460.0,0.00019526,2]
[374169307,1753236645542,-521.57,0.00019526,2]
[374169309,1753236645552,-973.72,0.00019526,2]
[374169311,1753236645562,-606.61,0.00019527,2]
[374169313,1753236645571,-470.39,0.00019527,2]
[374169315,1753236645580,-460.0,0.00019527,2]
[374169317,1753236645589,-655.27,0.00019529,2]
[374169319,1753236645598,-500.0,0.0001953,2]
[374169321,1753236645608,-247.92601288,0.0001953,2]
[374169323,1753236645617,-3811.53480332,0.00019555,2]
[374169325,1753236645626,-1024.07,0.00019796,2]
[374169327,1753236645635,-460.0,0.00019797,2]
[374169329,1753236645645,-460.0,0.00019797,2]
[374169331,1753236645655,-460.0,0.00019797,2]
[374169333,1753236645664,-1382.84,0.00019797,2]
[374169335,1753236645674,-216.04,0.00019797,2]
[374169337,1753236645684,-1310.89,0.00019797,2]
[374169339,1753236645693,-946.48,0.00019797,2]
[374169341,1753236645703,-460.0,0.00019797,2]
[374169343,1753236645712,-460.0,0.00019797,2]
[374169345,1753236645722,-2444.14,0.00019798,2]
[374169347,1753236645731,-805.37,0.00019798,2]
[374169349,1753236645741,-1065.45,0.00019798,2]
[374169351,1753236645750,-3151.94,0.000198,2]
[374169353,1753236645759,-1209.66,0.000198,2]
[374169355,1753236645768,-261.8,0.000198,2]
[374169357,1753236645777,-460.0,0.000198,2]
[374169359,1753236645787,-460.0,0.000198,2]
[374169361,1753236645796,-460.0,0.000198,2]
[374169363,1753236645805,-460.0,0.000198,2]
[374169365,1753236645815,-904.4,0.000198,2]
[374169367,1753236645824,-249.92,0.000198,2]
[374169369,1753236645833,-460.0,0.000198,2]
[374169370,1753236645842,-521.57,0.000198,2]
[374169371,1753236645851,-973.72,0.000198,2]
[374169372,1753236645861,-606.61,0.00019801,2]
[374169373,1753236645870,-470.39,0.00019801,2]
[374169374,1753236645879,-460.0,0.00019801,2]
[374169376,1753236645888,-500.0,0.00019804,2]
[374169377,1753236645897,-3811.53480332,0.00019831,2]
[374169378,1753236645906,-1000.0,0.00019921,2]
[374169379,1753236645915,-1000.0,0.00019921,2]
[374169380,1753236645924,-460.0,0.00019962,2]
[374169382,1753236645934,-1024.07,0.0002007,2]
[374169384,1753236645943,-460.0,0.00020071,2]
[374169387,1753236645952,-302.83,0.00020071,2]
[374169389,1753236645961,-381.3623795,0.00020071,2]
[374169391,1753236645970,-1382.84,0.00020071,2]
[374169393,1753236645980,-1310.89,0.00020071,2]
[374169395,1753236645989,-946.48,0.00020071,2]
[374169397,1753236645998,-460.0,0.00020071,2]
[374169399,1753236646007,-460.0,0.00020071,2]
[374169401,1753236646017,-2444.14,0.00020072,2]
[374169403,1753236646026,-805.37,0.00020072,2]
[374169405,1753236646036,-1065.45,0.00020072,2]
[374169406,1753236646046,-3151.94,0.00020074,2]
[374169408,1753236646055,-1209.66,0.00020074,2]
[374169410,1753236646065,-460.0,0.00020074,2]
[374169412,1753236646074,-460.0,0.00020074,2]
[374169414,1753236646084,-460.0,0.00020074,2]
[374169416,1753236646094,-460.0,0.00020074,2]
[374169418,1753236646103,-904.4,0.00020074,2]
[374169420,1753236646113,-460.0,0.00020074,2]
[374169422,1753236646123,-521.57,0.00020074,2]
[374169424,1753236646132,-973.72,0.00020074,2]
[374169426,1753236646142,-606.61,0.00020075,2]
[374169428,1753236646152,-470.39,0.00020075,2]
[374169430,1753236646161,-460.0,0.00020075,2]
[374169432,1753236646171,-412.78960921,0.00020078,2]
[374169434,1753236646180,-3811.53480332,0.00020107,2]
[374169436,1753236646191,-553.217161,0.00020187,2]
[374169438,1753236646200,-3945.09543788,0.00020259,2]
[374169440,1753236646212,-1024.07,0.00020344,2]
[374169442,1753236646222,-460.0,0.00020345,2]
[374169444,1753236646231,-1382.84,0.00020345,2]
[374169446,1753236646244,-1310.89,0.00020345,2]
[374169448,1753236646254,-946.48,0.00020345,2]
[374169450,1753236646263,-460.0,0.00020345,2]
[374169453,1753236646274,-460.0,0.00020345,2]
[374169455,1753236646283,-2444.14,0.00020346,2]
[374169456,1753236646292,-805.37,0.00020346,2]
[374169458,1753236646306,-1065.45,0.00020346,2]
[374169460,1753236646316,-3151.94,0.00020348,2]
[374169462,1753236646326,-1209.66,0.00020348,2]
[374169464,1753236646335,-460.0,0.00020348,2]
[374169466,1753236646344,-460.0,0.00020348,2]
[374169468,1753236646354,-460.0,0.00020348,2]
[374169470,1753236646363,-460.0,0.00020348,2]
[374169472,1753236646373,-904.4,0.00020348,2]
[374169474,1753236646382,-521.57,0.00020348,2]
[374169477,1753236646392,-973.72,0.00020348,2]
[374169478,1753236646401,-606.61,0.00020349,2]
[374169480,1753236646411,-470.39,0.00020349,2]
[374169482,1753236646419,-460.0,0.00020349,2]
[374169484,1753236646429,-611.73,0.00020355,2]
[374169486,1753236646438,-3811.53480332,0.00020383,3]
[374169488,1753236646447,-250.65120256,0.00020426,2]
[374169490,1753236646456,-877.62175577,0.00020468,2]
[374169492,1753236646466,-1503.04100598,0.00020468,2]
[374169494,1753236646475,-560.0,0.0002051,2]
[374169496,1753236646484,-822.627,0.00020612,2]
[374169498,1753236646493,-178.56887845,0.00020612,2]
[374169500,1753236646503,-1024.07,0.00020618,2]
[374169502,1753236646512,-571.23977172,0.00020619,2]
[374169504,1753236646522,-1382.84,0.00020619,2]
[374169506,1753236646531,-1310.89,0.00020619,2]
[374169508,1753236646541,-946.48,0.00020619,2]
[374169510,1753236646553,-460.0,0.00020619,2]
[374169512,1753236646562,-2444.14,0.0002062,2]
[374169514,1753236646572,-805.37,0.0002062,2]
[374169516,1753236646581,-1065.45,0.0002062,2]
[374169518,1753236646590,-3151.94,0.00020622,2]
[374169520,1753236646600,-1209.66,0.00020622,2]
[374169522,1753236646610,-460.0,0.00020622,2]
[374169524,1753236646619,-460.0,0.00020622,2]
[374169526,1753236646628,-460.0,0.00020622,2]
[374169528,1753236646637,-386.68,0.00020622,2]
[374169530,1753236646646,-904.4,0.00020622,2]
[374169532,1753236646655,-521.57,0.00020622,2]
[374169534,1753236646665,-973.72,0.00020622,2]
[374169536,1753236646674,-606.61,0.00020623,2]
[374169538,1753236646683,-470.39,0.00020623,2]
[374169540,1753236646694,-460.0,0.00020623,2]
[374169542,1753236646703,-655.27,0.00020658,2]
[374169544,1753236646713,-3811.53480332,0.00020659,3]
[374169546,1753236646722,-1024.07,0.00020892,2]
[374169548,1753236646732,-1382.84,0.00020893,2]
[374169550,1753236646742,-1310.89,0.00020893,2]
[374169552,1753236646751,-946.48,0.00020893,2]
[374169554,1753236646761,-460.0,0.00020893,2]
[374169556,1753236646770,-2444.14,0.00020894,2]
[374169558,1753236646779,-805.37,0.00020894,2]
[374169560,1753236646788,-1065.45,0.00020894,2]
[374169563,1753236646800,-3151.94,0.00020896,2]
[374169564,1753236646810,-1209.66,0.00020896,2]
[374169566,1753236646819,-460.0,0.00020896,2]
[374169568,1753236646828,-460.0,0.00020896,2]
[374169570,1753236646838,-460.0,0.00020896,2]
[374169572,1753236646853,-904.4,0.00020896,2]
[374169575,1753236646863,-521.57,0.00020896,2]
[374169577,1753236646872,-973.72,0.00020896,2]
[374169579,1753236646881,-606.61,0.00020897,2]
[374169581,1753236646890,-470.39,0.00020897,2]
[374169582,1753236646899,-460.0,0.00020897,2]
[374169584,1753236646908,-3811.53480332,0.00020934,4]
[374169586,1753236646918,-660.0,0.00021058,2]
[374169589,1753236646929,-1024.07,0.00021166,2]
[374169590,1753236646938,-1382.84,0.00021167,2]
[374169592,1753236646947,-1310.89,0.00021167,2]
[374169595,1753236646956,-946.48,0.00021167,2]
[374169597,1753236646966,-460.0,0.00021167,2]
[374169598,1753236646974,-2444.14,0.00021168,2]
[374169600,1753236646983,-805.37,0.00021168,2]
[374169602,1753236646992,-1065.45,0.00021168,2]
[374169604,1753236647001,-3151.94,0.0002117,2]
[374169606,1753236647010,-1209.66,0.0002117,2]
[374169608,1753236647019,-540.61506118,0.0002117,2]
[374169610,1753236647028,-460.0,0.0002117,2]
[374169612,1753236647039,-460.0,0.0002117,2]
[374169614,1753236647049,-904.4,0.0002117,2]
[374169616,1753236647059,-521.57,0.0002117,2]
[374169618,1753236647068,-973.72,0.0002117,2]
[374169620,1753236647078,-606.61,0.00021171,2]
[374169622,1753236647088,-470.39,0.00021171,2]
[374169624,1753236647098,-460.0,0.00021171,2]
[374169626,1753236647107,-3811.53480332,0.0002121,4]
[374169628,1753236647116,-1024.07,0.00021439,2]
[374169630,1753236647125,-1382.84,0.00021441,2]
[374169632,1753236647134,-1310.89,0.00021441,2]
[374169634,1753236647143,-946.48,0.00021441,2]
[374169636,1753236647152,-460.0,0.00021441,2]
[374169638,1753236647161,-2444.14,0.00021442,2]
[374169640,1753236647170,-805.37,0.00021442,2]
[374169642,1753236647179,-1065.45,0.00021442,2]
[374169644,1753236647188,-3151.94,0.00021444,2]
[374169646,1753236647197,-460.0,0.00021444,2]
[374169648,1753236647206,-460.0,0.00021444,2]
[374169650,1753236647215,-904.4,0.00021444,2]
[374169652,1753236647225,-521.57,0.00021444,2]
[374169654,1753236647234,-973.72,0.00021444,2]
[374169656,1753236647245,-606.61,0.00021445,2]
[374169658,1753236647254,-470.39,0.00021445,2]
[374169660,1753236647263,-460.0,0.00021445,2]
[374169662,1753236647271,-3811.53480332,0.00021486,5]
[374169664,1753236647280,-250.65120256,0.00021583,2]
[374169665,1753236647290,-760.0,0.00021606,2]
[374169668,1753236647299,-3945.09543788,0.0002164,2]
[374169669,1753236647309,-3000.0,0.000217,2]
[374169671,1753236647318,-151.0,0.000217,3]
[374169674,1753236647328,-3000.0,0.0002171,2]
[374169684,1753236647412,-1024.07,0.00021713,2]
[374169687,1753236647432,-1382.84,0.00021715,2]
[374169689,1753236647442,-1310.89,0.00021715,2]
[374169691,1753236647451,-946.48,0.00021715,2]
[374169693,1753236647460,-460.0,0.00021715,2]
[374169694,1753236647469,-2444.14,0.00021716,2]
[374169697,1753236647479,-805.37,0.00021716,2]
[374169699,1753236647489,-1065.45,0.00021716,2]
[374169701,1753236647498,-3151.94,0.00021718,2]
[374169703,1753236647507,-460.0,0.00021718,2]
[374169705,1753236647516,-460.0,0.00021718,2]
[374169707,1753236647526,-904.4,0.00021718,2]
[374169708,1753236647535,-521.57,0.00021718,2]
[374169711,1753236647545,-606.61,0.00021719,2]
[374169713,1753236647554,-470.39,0.00021719,2]
[374169715,1753236647563,-460.0,0.00021719,2]
[374169717,1753236647572,-3000.0,0.0002172,2]
[374169719,1753236647581,-3000.0,0.0002173,2]
[374169721,1753236647590,-3000.0,0.0002174,2]
[374169723,1753236647599,-180.38058028,0.00021746,2]
[374169725,1753236647609,-3000.0,0.0002175,2]
[374169727,1753236647619,-3000.0,0.0002176,2]
[374169729,1753236647627,-3811.53480332,0.00021762,5]
[374169731,1753236647638,-500.0,0.00021769,2]
[374169733,1753236647647,-215.60648938,0.00021769,2]
[374169735,1753236647656,-1301.29853062,0.00021769,2]
[374169737,1753236647665,-1301.29853062,0.00021769,2]
[374169739,1753236647675,-1301.29853062,0.00021769,2]
[374169741,1753236647684,-500.0,0.00021769,2]
[374169743,1753236647693,-1301.29853062,0.00021769,2]
[374169745,1753236647702,-500.0,0.00021769,2]
[374169746,1753236647713,-1301.29853062,0.00021769,2]
[374169749,1753236647723,-500.0,0.00021769,2]
[374169750,1753236647732,-1301.29853062,0.00021769,2]
[374169752,1753236647741,-500.0,0.00021769,2]
[374169755,1753236647750,-1301.29853062,0.00021769,2]
[374169757,1753236647759,-1301.29853062,0.00021769,2]
[374169759,1753236647768,-1301.29853062,0.00021769,2]
[374169761,1753236647777,-1301.29853062,0.00021769,2]
[374169763,1753236647787,-1301.29853062,0.00021769,2]
[374169764,1753236647796,-1301.29853062,0.00021769,2]
[374169767,1753236647806,-1301.29853062,0.00021769,2]
[374169768,1753236647815,-1301.29853062,0.00021769,2]
[374169770,1753236647824,-1301.29853062,0.00021769,2]
[374169772,1753236647833,-1301.29853062,0.00021769,2]
[374169774,1753236647842,-1301.29853062,0.00021769,2]
[374169776,1753236647851,-1301.29853062,0.00021769,2]
[374169778,1753236647860,-1301.29853062,0.00021769,2]
[374169780,1753236647869,-1301.29853062,0.00021769,2]
[374169782,1753236647878,-1301.29853062,0.00021769,2]
[374169784,1753236647887,-1301.29853062,0.00021769,2]
[374169786,1753236647896,-1301.29853062,0.00021769,2]
[374169788,1753236647905,-3000.0,0.0002177,2]
[374169790,1753236647914,-500.0,0.00021773,2]
[374169792,1753236647924,-500.55543963,0.00021773,2]
[374169794,1753236647933,-507.62343699,0.00021773,2]
[374169796,1753236647942,-500.0,0.00021773,2]
[374169798,1753236647951,-500.0,0.00021773,2]
[374169800,1753236647960,-500.98255615,0.00021773,2]
[374169802,1753236647969,-450.57992501,0.00021773,2]
[374169804,1753236647979,-500.9703602,0.00021773,2]
[374169806,1753236647988,-500.0,0.00021773,2]
[374169808,1753236647997,-520.75550898,0.00021773,2]
[374169810,1753236648006,-274.27384637,0.00021773,2]
[374169812,1753236648016,-280.22416713,0.00021773,2]
[374169814,1753236648025,-501.43635755,0.00021773,2]
[374169816,1753236648035,-411.44928912,0.00021773,2]
[374169818,1753236648046,-500.98894013,0.00021773,2]
[374169820,1753236648056,-151.77505433,0.00021773,2]
[374169822,1753236648067,-500.0,0.00021773,2]
[374169824,1753236648077,-500.0,0.00021773,2]
[374169826,1753236648087,-500.0,0.00021773,2]
[374169828,1753236648097,-500.0,0.00021773,2]
[374169830,1753236648106,-500.37637071,0.00021773,2]
[374169832,1753236648116,-500.43577641,0.00021773,2]
[374169834,1753236648125,-501.27535184,0.00021773,2]
[374169836,1753236648135,-500.0,0.00021773,2]
[374169838,1753236648144,-3000.0,0.0002178,2]
[374169840,1753236648154,-3000.0,0.0002179,2]
[374169842,1753236648163,-3000.0,0.000218,2]
[374169844,1753236648174,-3000.0,0.0002181,2]
[374169846,1753236648183,-3000.0,0.0002182,2]
[374169848,1753236648192,-3000.0,0.0002183,2]
[374169850,1753236648201,-3000.0,0.0002184,2]
[374169852,1753236648210,-3000.0,0.0002185,2]
[374169854,1753236648219,-3000.0,0.0002186,2]
[374169856,1753236648229,-3000.0,0.0002187,2]
[374169858,1753236648238,-3000.0,0.0002188,2]
[374169860,1753236648252,-3000.0,0.0002189,2]
[374169862,1753236648262,-3000.0,0.000219,2]
[374169864,1753236648271,-3000.0,0.0002191,2]
[374169866,1753236648281,-150.08442765,0.00021918,2]
[374169868,1753236648290,-200.36388747,0.00021918,2]
[374169870,1753236648301,-3000.0,0.0002192,2]
[374169872,1753236648310,-3000.0,0.0002193,2]
[374169874,1753236648319,-3000.0,0.0002194,2]
[374169876,1753236648329,-3000.0,0.0002195,2]
[374169878,1753236648340,-3000.0,0.0002196,2]
[374169880,1753236648349,-3000.0,0.0002197,2]
[374169882,1753236648360,-500.0,0.00021973,2]
[374169884,1753236648369,-500.0,0.00021973,2]
[374169886,1753236648378,-500.0,0.00021973,2]
[374169888,1753236648387,-500.0,0.00021973,2]
[374169890,1753236648396,-160.28662095,0.00021973,2]
[374169892,1753236648405,-500.0,0.00021973,2]
[374169894,1753236648415,-165.8063407,0.00021973,2]
[374169896,1753236648425,-500.0,0.00021973,2]
[374169898,1753236648434,-3000.0,0.0002198,2]
[374169900,1753236648443,-1024.07,0.00021987,2]
[374169902,1753236648453,-1382.84,0.00021989,2]
[374169904,1753236648462,-1310.89,0.00021989,2]
[374169906,1753236648472,-946.48,0.00021989,2]
[374169908,1753236648481,-460.0,0.00021989,2]
[374169910,1753236648490,-3000.0,0.0002199,2]
[374169912,1753236648500,-2444.14,0.0002199,2]
[374169914,1753236648509,-805.37,0.0002199,2]
[374169916,1753236648520,-1065.45,0.0002199,2]
[374169918,1753236648529,-3151.94,0.00021992,2]
[374169920,1753236648539,-460.0,0.00021992,2]
[374169922,1753236648550,-460.0,0.00021992,2]
[374169924,1753236648559,-904.4,0.00021992,2]
[374169926,1753236648568,-521.57,0.00021992,2]
[374169928,1753236648578,-606.61,0.00021993,2]
[374169930,1753236648587,-470.39,0.00021993,2]
[374169932,1753236648596,-557.43535671,0.00021993,2]
[374169933,1753236648605,-260.55,0.00022,7]
[374169935,1753236648615,-3000.0,0.00022,2]
[374169937,1753236648624,-5561.01,0.00022,7]
[374169939,1753236648633,-592.72,0.00022,7]
[374169941,1753236648642,-10661.46,0.00022,2]
[374169943,1753236648652,-3000.0,0.0002201,2]
[374169945,1753236648661,-3000.0,0.0002202,2]
[374169947,1753236648670,-3000.0,0.0002203,2]
[374169949,1753236648679,-3811.53480332,0.00022038,6]
[374169951,1753236648688,-3000.0,0.0002204,2]
[374169953,1753236648698,-3000.0,0.0002205,2]
[374169955,1753236648708,-3000.0,0.0002206,2]
[374169957,1753236648718,-3000.0,0.0002207,2]
[374169959,1753236648727,-3000.0,0.0002208,2]
[374169961,1753236648736,-3000.0,0.0002209,2]
[374169963,1753236648745,-3000.0,0.000221,2]
[374169965,1753236648754,-3000.0,0.0002211,2]
[374169967,1753236648763,-3000.0,0.0002212,2]
[374169969,1753236648772,-184.724742,0.0002212,7]
[374169971,1753236648781,-151.0,0.0002212,7]
[374169973,1753236648790,-151.0,0.0002212,7]
[374169975,1753236648800,-151.0,0.0002212,7]
[374169977,1753236648811,-152.833854,0.0002212,7]
[374169979,1753236648821,-151.0,0.0002212,7]
[374169980,1753236648831,-156.72946,0.0002212,7]
[374169982,1753236648842,-151.0,0.0002212,7]
[374169984,1753236648852,-151.0,0.0002212,7]
[374169986,1753236648862,-153.601296,0.0002212,7]
[374169988,1753236648873,-151.0,0.0002212,7]
[374169990,1753236648883,-3000.0,0.0002213,2]
[374169992,1753236648894,-3260.15799,0.0002214,2]
[374169994,1753236648903,-860.0,0.00022153,2]
[374169996,1753236648913,-1223.47,0.00022206,2]
[374169998,1753236648922,-1024.07,0.00022261,2]
[374170000,1753236648932,-1382.84,0.00022263,2]
[374170002,1753236648941,-1310.89,0.00022263,2]
[374170004,1753236648951,-946.48,0.00022263,2]
[374170006,1753236648960,-460.0,0.00022263,2]
[374170008,1753236648970,-2444.14,0.00022264,2]
[374170010,1753236648979,-805.37,0.00022264,2]
[374170012,1753236648988,-1065.45,0.00022264,2]
[374170014,1753236648998,-3151.94,0.00022266,2]
[374170016,1753236649008,-460.0,0.00022266,2]
[374170018,1753236649017,-460.0,0.00022266,2]
[374170020,1753236649027,-904.4,0.00022266,2]
[374170022,1753236649036,-521.57,0.00022266,2]
[374170023,1753236649045,-606.61,0.00022267,2]
[374170025,1753236649056,-470.39,0.00022267,2]
[374170027,1753236649065,-151.0,0.000223,8]
[374170029,1753236649075,-3811.53480332,0.00022314,7]
[374170030,1753236649085,-1000.0,0.00022321,2]
[374170031,1753236649094,-1017.46250602,0.00022321,2]
[374170032,1753236649104,-500.58467025,0.00022321,2]
[374170033,1753236649115,-501.17804774,0.00022321,2]
[374170034,1753236649124,-1000.0,0.00022321,2]
[374170035,1753236649134,-1000.0,0.00022321,2]
[374170036,1753236649143,-200.77158293,0.00022321,2]
[374170037,1753236649153,-1000.0,0.00022321,2]
[374170038,1753236649161,-502.8843737,0.00022321,2]
[374170039,1753236649170,-151.0,0.000224,8]
[374170040,1753236649180,-214.67886746,0.000224,7]
[374170041,1753236649189,-250.55568778,0.00022407,2]
[374170042,1753236649198,-151.0,0.00022426,2]
[374170043,1753236649207,-151.0,0.00022426,2]
[374170044,1753236649216,-151.0,0.00022426,2]
[374170045,1753236649226,-151.0,0.00022426,2]
[374170046,1753236649235,-151.0,0.00022426,2]
[374170047,1753236649248,-151.0,0.00022426,2]
[374170048,1753236649257,-151.0,0.00022426,2]
[374170049,1753236649267,-151.0,0.00022426,2]
[374170050,1753236649277,-151.0,0.00022426,2]
[374170051,1753236649287,-215.0738,0.00022426,2]
[374170052,1753236649298,-3801.642,0.00022426,2]
[374170053,1753236649308,-151.0,0.00022426,2]
[374170054,1753236649319,-151.0,0.00022426,2]
[374170055,1753236649328,-151.98065924,0.00022426,2]
[374170056,1753236649338,-151.0,0.00022426,2]
[374170057,1753236649347,-151.0,0.00022426,2]
[374170058,1753236649357,-151.0,0.00022426,2]
[374170059,1753236649366,-151.0,0.00022426,2]
[374170060,1753236649375,-151.0,0.00022426,2]
[374170061,1753236649384,-151.0,0.00022426,2]
[374170062,1753236649393,-151.0,0.00022426,2]
[374170063,1753236649403,-151.0,0.00022426,2]
[374170064,1753236649413,-151.0,0.00022426,2]
[374170065,1753236649422,-151.0,0.00022426,2]
[374170066,1753236649431,-151.0,0.00022426,2]
[374170067,1753236649441,-151.0,0.00022426,2]
[374170068,1753236649450,-152.71936777,0.00022426,2]
[374170069,1753236649459,-151.0,0.00022426,2]
[374170070,1753236649469,-151.0,0.00022426,2]